bitfinex/quotes_SOLUSD_20240604
["timestamp","ask_amount","ask_price","bid_price","bid_amount"]
[1717507857865,8.8949,166.39,166.3,2.2248]
[1717507857866,2.2242,166.35,166.3,2.2248]
[1717507858066,8.688,166.35,166.3,2.2248]
[1717507858576,2.2243,166.34,166.29,2.2249]
[1717507859190,2.2245,166.33,166.26,25.2906]
[1717507859369,22.7838,166.38,166.3,4.4497]
[1717507859370,2.2238,166.38,166.3,4.4497]
[1717507859572,2.224,166.37,166.32,2.2245]
[1717507859975,8.4494,166.37,166.32,2.2245]
[1717507860384,2.2241,166.36,166.32,2.2245]
[1717507860594,2.2241,166.36,166.31,2.2247]
[1717507860975,8.4495,166.36,166.31,2.2247]
[1717507861172,2.2241,166.36,166.31,2.2247]
[1717507861369,2.2245,166.33,166.28,2.2251]
[1717507861575,6.6025,166.35,166.28,2.2251]
[1717507861770,6.6025,166.35,166.29,2.2249]
[1717507861995,6.6025,166.35,166.25,4.4508]
[1717507861996,2.2245,166.33,166.26,4.4507]
[1717507862186,2.2245,166.33,166.28,2.2251]
[1717507862374,8.5646,166.33,166.28,2.2251]
[1717507863508,6.4485,166.26,166.14,36.08]
[1717507863675,6.4485,166.26,166.15,11.1342]
[1717507863882,2.2257,166.24,166.18,2.2263]
[1717507864188,2.2257,166.24,166.15,4.4535]
[1717507864189,15.9831,166.23,166.07,120.0]
[1717507864399,2.2262,166.2,166.13,2.2271]
[1717507864601,2.2263,166.19,166.13,2.2271]
[1717507864892,2.2264,166.19,166.11,2.2273]
[1717507865076,15.9831,166.23,166.07,36.08]
[1717507865267,15.9831,166.23,166.08,2.2278]
[1717507865268,9.4997124,166.22,166.08,2.2278]
[1717507865470,2.227,166.14,166.05,81.6062]
[1717507865771,6.247,166.17,166.05,81.6062]
[1717507865772,6.247,166.17,166.1,2.2275]
[1717507865985,8.4737,166.17,166.1,2.2275]
[1717507866178,8.9046,166.21,166.07,174.14]
[1717507866179,6.247,166.21,166.07,174.14]
[1717507866393,6.247,166.21,166.11,2.2274]
[1717507866592,2.2266,166.17,166.11,2.2274]
[1717507866775,2.2264,166.19,166.08,74.98]
[1717507867089,6.247,166.21,166.1,54.14]
[1717507867279,6.247,166.21,166.14,2.2269]
[1717507867476,8.4732,166.21,166.14,2.2269]
[1717507867691,2.2262,166.2,166.14,2.2269]
[1717507868087,6.247,166.21,166.12,54.14]
[1717507868274,2.2258,166.23,166.17,2.2265]
[1717507868588,2.2259,166.22,166.13,58.9342]
[1717507868795,6.1004,166.25,166.15,2.2268]
[1717507868796,2.2261,166.21,166.15,2.2268]
[1717507869181,2.2259,166.22,166.16,2.2267]
[1717507869595,6.4147,166.25,166.17,2.2266]
[1717507869794,2.2258,166.23,166.17,2.2266]
[1717507871196,6.4147,166.25,166.16,2.2267]
[1717507871197,2.226,166.22,166.16,2.2267]
[1717507871499,2.226,166.22,166.17,2.2266]
[1717507871885,8.2865,166.22,166.17,2.2266]
[1717507872082,6.0605,166.22,166.13,54.48]
[1717507872287,2.2261,166.21,166.15,2.2268]
[1717507872778,2.2261,166.21,166.16,2.2267]
[1717507872989,2.2258,166.23,166.17,2.2266]
[1717507873176,8.3568,166.23,166.18,2.2264]
[1717507873374,6.131,166.23,166.18,2.2264]
[1717507873585,8.3568,166.23,166.18,2.2264]
[1717507873795,8.3568,166.23,166.16,2.2266]
[1717507874104,8.3568,166.23,166.17,2.2266]
[1717507874401,6.131,166.23,166.17,0.17]
[1717507874604,2.2254,166.26,166.2,2.2262]
[1717507874796,2.2256,166.24,166.17,0.17]
[1717507874986,2.2254,166.26,166.17,0.17]
[1717507875186,2.2252,166.28,166.22,2.2259]
[1717507875584,2.225,166.29,166.23,2.2258]
[1717507875809,2.2253,166.27,166.21,2.226]
[1717507875988,2.2254,166.26,166.21,2.226]
[1717507876302,2.2255,166.26,166.2,2.2262]
[1717507876804,2.2253,166.27,166.21,0.17]
[1717507876984,15.26,166.3,166.19,174.48]
[1717507877191,2.2251,166.29,166.19,174.48]
[1717507877692,2.2251,166.28,166.22,2.2258]
[1717507878081,2.2252,166.27,166.22,2.2258]
[1717507878280,2.2252,166.27,166.21,2.396]
[1717507879205,15.42,166.31,166.15,65.2742]
[1717507879504,2.2256,166.25,166.18,2.2265]
[1717507879798,2.226,166.22,166.16,2.2266]
[1717507880006,2.226,166.22,166.17,2.2266]
[1717507880211,8.9009,166.28,166.18,2.2264]
[1717507880409,2.2255,166.25,166.18,2.2264]
[1717507880580,2.2258,166.24,166.18,2.2264]
[1717507881077,2.2255,166.25,166.19,2.2262]
[1717507882112,2.2254,166.26,166.21,2.226]
[1717507882409,2.2253,166.27,166.21,2.226]
[1717507882614,2.2254,166.26,166.21,2.226]
[1717507882907,2.2255,166.25,166.2,2.2262]
[1717507883305,6.4117,166.29,166.18,2.2264]
[1717507883306,4.4506,166.27,166.18,2.2264]
[1717507883480,8.4898,166.24,166.19,2.2263]
[1717507883680,6.264,166.24,166.2,2.2262]
[1717507884703,2.2254,166.26,166.21,2.226]
[1717507884907,2.2253,166.27,166.21,2.226]
[1717507885205,2.2254,166.26,166.2,2.2261]
[1717507885407,2.2255,166.25,166.2,2.2261]
[1717507885776,2.225,166.29,166.24,2.2256]
[1717507885981,2.225,166.29,166.21,22.2638]
[1717507885982,20.2003,166.34,166.22,4.4516]
[1717507886281,2.2248,166.31,166.26,2.2254]
[1717507887704,22.8537,166.3,166.22,4.4516]
[1717507887879,6.6073,166.3,166.26,2.2253]
[1717507888079,6.6073,166.3,166.25,2.2255]
[1717507888080,8.8321,166.3,166.25,2.2255]
[1717507888891,6.6073,166.3,166.26,2.2254]
[1717507890081,2.2249,166.3,166.25,2.2255]
[1717507890291,10.488,166.28,166.17,4.4532]
[1717507890489,2.2255,166.25,166.2,2.2261]
[1717507890714,6.0376,166.25,166.2,2.2262]
[1717507890889,8.2631,166.25,166.2,2.2262]
[1717507891087,6.5965,166.25,166.19,2.2263]
[1717507891401,6.5965,166.25,166.2,2.2262]
[1717507891402,6.5965,166.24,166.2,2.2262]
[1717507891796,8.8222,166.24,166.19,2.2263]
[1717507893799,6.5965,166.24,166.2,2.2262]
[1717507894114,2.2256,166.25,166.2,2.2262]
[1717507894115,6.294,166.28,166.2,2.2261]
[1717507894294,8.5195,166.25,166.2,2.2261]
[1717507894788,2.2253,166.27,166.22,2.2259]
[1717507894994,2.2254,166.26,166.21,2.226]
[1717507895193,2.2255,166.25,166.2,2.2261]
[1717507895694,2.2257,166.24,166.19,2.2263]
[1717507895894,8.2751,166.23,166.19,2.2263]
[1717507896132,6.0493,166.23,166.2,2.2262]
[1717507896585,6.0493,166.23,166.19,2.2263]
[1717507896785,6.0493,166.23,166.15,15.5878]
[1717507896786,6.0493,166.21,166.09,56.92]
[1717507897123,2.2262,166.2,166.15,2.2268]
[1717507897293,6.5014,166.2,166.16,2.2267]
[1717507897500,8.7276,166.2,166.15,2.2268]
[1717507897699,16.5573,166.23,166.19,2.2262]
[1717507898030,4.4507,166.27,166.13,11.1355]
[1717507898031,6.5014,166.22,166.18,2.2264]
[1717507898210,6.5014,166.22,166.19,2.2263]
[1717507898602,6.5014,166.22,166.18,2.2264]
[1717507899592,2.2257,166.24,166.18,2.2264]
[1717507900732,2.2257,166.24,166.19,3.96036367]
[1717507900899,8.825,166.26,166.2,1.73395934]
[1717507901216,2.2255,166.25,166.2,1.73395934]
[1717507902302,2.2257,166.24,166.18,2.2264]
[1717507904697,6.5995,166.26,166.16,2.2266]
[1717507904895,2.2259,166.23,166.17,2.2266]
[1717507905723,2.2259,166.22,166.17,2.2266]
[1717507905917,15.5772,166.27,166.17,2.2266]
[1717507905918,6.5095,166.28,166.17,20.84]
[1717507906219,6.5095,166.28,166.18,2.5663]
[1717507906408,2.2257,166.24,166.19,2.2263]
[1717507906721,2.2255,166.26,166.2,2.2261]
[1717507906916,2.2255,166.25,166.19,2.2263]
[1717507907424,2.2254,166.26,166.19,2.2263]
[1717507907606,2.2254,166.26,166.2,2.2262]
[1717507908321,2.2253,166.27,166.21,2.226]
[1717507909109,2.2254,166.26,166.2,2.2262]
[1717507910022,2.2253,166.27,166.2,2.2262]
[1717507910520,2.2253,166.27,166.21,2.226]
[1717507911529,6.5095,166.28,166.17,0.17]
[1717507911719,6.5095,166.28,166.2,4.4524]
[1717507911909,6.3241,166.32,166.21,0.17]
[1717507912225,6.3241,166.32,166.21,0.34]
[1717507912425,2.2249,166.3,166.24,2.2256]
[1717507912732,6.3241,166.32,166.21,0.34]
[1717507913246,2.2248,166.31,166.24,2.2256]
[1717507913411,2.2249,166.3,166.24,2.2256]
[1717507916232,2.2244,166.34,166.28,2.2251]
[1717507916521,2.2245,166.33,166.26,2.2253]
[1717507916902,2.2246,166.32,166.26,2.2253]
[1717507917747,2.2247,166.31,166.25,2.2255]
[1717507919333,2.2247,166.31,166.23,0.17]
[1717507919334,6.2328,166.36,166.21,16.3508]
[1717507919534,4.449,166.33,166.21,16.3508]
[1717507919706,2.225,166.29,166.23,2.2257]
[1717507920023,2.2249,166.3,166.24,2.2256]
[1717507920410,2.225,166.29,166.23,2.2257]
[1717507920625,2.2251,166.28,166.23,2.2257]
[1717507920827,2.2249,166.3,166.24,2.2256]
[1717507922227,2.225,166.29,166.24,2.2256]
[1717507922430,2.2249,166.3,166.24,2.2256]
[1717507922636,2.2249,166.3,166.25,2.2255]
[1717507922808,2.2247,166.31,166.25,2.2255]
[1717507923005,12.60895375,166.36,166.23,0.17]
[1717507923231,2.2246,166.32,166.27,2.2252]
[1717507924322,2.2246,166.32,166.26,2.2253]
[1717507924518,2.2248,166.3,166.24,2.2256]
[1717507924720,2.2247,166.31,166.22,0.34]
[1717507924931,2.2247,166.31,166.26,2.2253]
[1717507925103,15.1294,166.36,166.22,0.34]
[1717507925104,10.6809,166.36,166.24,4.4511]
[1717507925308,2.2245,166.33,166.27,2.2252]
[1717507925921,2.2246,166.32,166.27,2.2252]
[1717507926542,2.2247,166.31,166.26,2.2254]
[1717507926830,4.4488,166.34,166.25,2.2255]
[1717507927032,2.2248,166.31,166.25,2.2255]
[1717507927733,2.2248,166.31,166.26,2.2254]
[1717507928830,2.2246,166.32,166.26,2.2254]
[1717507929412,2.2247,166.31,166.26,2.2254]
[1717507930027,2.2246,166.32,166.26,2.2254]
[1717507930436,2.2246,166.32,166.27,2.2252]
[1717507931038,10.681,166.36,166.27,2.2252]
[1717507931219,4.4484,166.35,166.26,2.2253]
[1717507931418,2.2245,166.33,166.24,54.14]
[1717507931619,2.2245,166.33,166.25,0.34]
[1717507931832,2.2246,166.32,166.27,2.2251]
[1717507932025,2.2245,166.33,166.27,2.2251]
[1717507932330,2.2246,166.32,166.27,2.2251]
[1717507932909,2.2246,166.32,166.25,0.34]
[1717507932910,2.2244,166.34,166.28,2.225]
[1717507933139,2.2244,166.34,166.29,2.2249]
[1717507933637,2.2244,166.33,166.28,2.2251]
[1717507933941,2.2245,166.33,166.28,2.2251]
[1717507934244,2.2245,166.33,166.29,2.225]
[1717507934537,2.2245,166.33,166.28,2.2251]
[1717507934957,2.2246,166.32,166.27,2.2252]
[1717507935115,2.2245,166.33,166.28,2.2251]
[1717507935323,2.2246,166.32,166.27,8.8022]
[1717507935628,2.2245,166.33,166.28,2.2251]
[1717507935936,2.2245,166.33,166.28,9.1751]
[1717507936440,2.2246,166.32,166.23,26.746]
[1717507936642,2.2246,166.32,166.27,2.2252]
[1717507937017,2.2247,166.31,166.27,2.2252]
[1717507937218,2.2246,166.32,166.27,2.2252]
[1717507937845,2.2246,166.32,166.27,9.1752]
[1717507938027,2.2246,166.32,166.28,2.2251]
[1717507938536,2.2246,166.32,166.27,9.1752]
[1717507939022,2.2246,166.32,166.28,2.2251]
[1717507939433,2.2246,166.32,166.28,9.1751]
[1717507939639,2.2245,166.33,166.29,1.20236232]
[1717507940024,2.2246,166.32,166.28,6.95]
[1717507940841,2.2246,166.32,166.27,9.1752]
[1717507941253,2.2246,166.32,166.27,2.2252]
[1717507941444,2.2246,166.32,166.27,9.1752]
[1717507942144,2.2247,166.31,166.27,2.2252]
[1717507942533,2.2247,166.31,166.26,2.2253]
[1717507942745,2.2248,166.3,166.25,2.2255]
[1717507942928,2.225,166.29,166.25,2.2255]
[1717507943237,2.225,166.29,166.24,9.1756]
[1717507943542,2.2251,166.28,166.23,2.2258]
[1717507943743,2.2251,166.28,166.2,4.4524]
[1717507944041,2.2251,166.28,166.23,2.2258]
[1717507944847,2.2253,166.27,166.21,9.176]
[1717507945022,2.2253,166.27,166.22,9.1759]
[1717507945623,2.2254,166.26,166.21,9.176]
[1717507945844,2.2254,166.26,166.2,2.2261]
[1717507946025,4.4499,166.3,166.2,2.2261]
[1717507946026,2.2255,166.25,166.2,2.2261]
[1717507946232,2.2255,166.25,166.19,2.2263]
[1717507946822,2.2254,166.26,166.16,58.5932]
[1717507947046,6.6108,166.3,166.22,2.2259]
[1717507947235,2.2253,166.27,166.21,2.226]
[1717507947430,2.2254,166.26,166.21,2.226]
[1717507948051,2.2254,166.26,166.2,2.2261]
[1717507948253,2.2254,166.26,166.21,2.226]
[1717507948966,2.2252,166.28,166.22,2.2259]
[1717507949254,6.6108,166.3,166.18,58.5929]
[1717507949255,2.2254,166.26,166.21,2.226]
[1717507949836,2.2254,166.26,166.2,2.2261]
[1717507950132,2.2255,166.25,166.2,2.2261]
[1717507952131,2.2254,166.26,166.2,2.2261]
[1717507952338,2.2255,166.25,166.2,2.2261]
[1717507952543,2.2254,166.26,166.2,2.2261]
[1717507952753,2.2255,166.25,166.2,2.2261]
[1717507954157,2.2254,166.26,166.21,2.226]
[1717507954772,2.2255,166.25,166.2,2.2261]
[1717507956154,2.2256,166.24,166.19,2.2263]
[1717507956542,2.2256,166.25,166.2,2.2262]
[1717507957344,4.4504,166.28,166.17,40.703]
[1717507957563,2.2256,166.25,166.17,40.703]
[1717507957765,2.2256,166.25,166.2,2.2261]
[1717507957952,2.2255,166.25,166.2,2.2261]
[1717507958146,2.2255,166.25,166.21,2.226]
[1717507958666,2.2255,166.25,166.2,2.2261]
[1717507959749,2.2259,166.23,166.18,2.2264]
[1717507960460,8.4299,166.24,166.19,2.2263]
[1717507961042,2.2255,166.26,166.2,2.2261]
[1717507961237,2.2254,166.26,166.2,2.2261]
[1717507961445,10.6545,166.28,166.19,2.2263]
[1717507961641,2.2257,166.24,166.19,2.2263]
[1717507963449,2.2253,166.27,166.22,2.2258]
[1717507963649,8.4293,166.28,166.2,4.4523]
[1717507963859,8.4293,166.28,166.22,2.2259]
[1717507964046,2.2252,166.27,166.22,2.2259]
[1717507964451,2.2253,166.27,166.22,2.2258]
[1717507965071,2.2254,166.26,166.21,2.226]
[1717507965246,2.2254,166.26,166.22,2.2259]
[1717507965448,2.2253,166.27,166.22,2.2259]
[1717507965648,2.2254,166.26,166.22,2.2259]
[1717507965865,2.2254,166.26,166.18,4.4528]
[1717507965866,2.2254,166.26,166.21,2.226]
[1717507967369,2.2254,166.26,166.22,2.2259]
[1717507967576,10.6546,166.28,166.16,34.22]
[1717507967755,2.2255,166.26,166.2,2.2261]
[1717507968079,2.2255,166.25,166.2,9.1761]
[1717507968281,8.8813,166.25,166.2,9.1761]
[1717507971578,2.2257,166.24,166.19,2.2263]
[1717507971777,8.8814,166.25,166.2,9.1762]
[1717507972085,2.226,166.22,166.17,0.17]
[1717507972374,13.2294,166.26,166.2,2.2261]
[1717507972589,8.5049,166.25,166.2,2.2261]
[1717507973659,8.5049,166.25,166.2,2.2261]
[1717507974851,8.5049,166.25,166.2,9.1761]
[1717507975283,6.2794,166.25,166.16,7.12]
[1717507975587,2.226,166.22,166.16,6.95]
[1717507975754,2.2258,166.23,166.17,9.1765]
[1717507976095,2.2258,166.23,166.18,2.2264]
[1717507976371,2.2258,166.23,166.18,6.95]
[1717507976560,2.2258,166.23,166.18,9.1764]
[1717507976872,13.2294,166.25,166.18,9.1764]
[1717507977063,2.2258,166.23,166.18,9.1764]
[1717507977380,13.2294,166.25,166.19,9.1763]
[1717507977381,8.2393,166.24,166.19,9.1763]
[1717507977874,2.2258,166.23,166.18,9.1764]
[1717507978049,2.2258,166.23,166.18,2.2264]
[1717507978251,2.2258,166.23,166.18,9.1764]
[1717507979484,2.2261,166.21,166.16,2.2267]
[1717507979778,2.226,166.22,166.17,9.1766]
[1717507980081,2.226,166.22,166.17,2.2266]
[1717507980379,2.226,166.22,166.17,9.1766]
[1717507980884,2.226,166.22,166.17,2.2266]
[1717507981078,2.226,166.22,166.17,9.1766]
[1717507981247,2.226,166.22,166.17,2.2266]
[1717507981447,2.2261,166.21,166.16,9.1767]
[1717507981652,2.2261,166.21,166.16,2.2267]
[1717507981861,2.2261,166.21,166.16,9.1767]
[1717507983571,2.226,166.22,166.17,2.2266]
[1717507985278,2.2261,166.21,166.17,2.2266]
[1717507987481,2.2261,166.21,166.16,9.1767]
[1717507988386,2.2261,166.21,166.16,2.2267]
[1717507988561,2.2263,166.19,166.14,9.1769]
[1717507988767,2.2262,166.2,166.15,2.2268]
[1717507989071,6.2847,166.2,166.14,6.95]
[1717507989266,6.2847,166.2,166.11,13.3643]
[1717507989471,8.511,166.2,166.15,2.2268]
[1717507989664,2.2263,166.19,166.14,9.1769]
[1717507989861,6.2847,166.2,166.11,13.3643]
[1717507989862,8.5109,166.2,166.15,2.2269]
[1717507990062,8.5109,166.2,166.15,9.1769]
[1717507990266,8.5109,166.2,166.14,2.2269]
[1717507990267,2.2263,166.19,166.14,2.2269]
[1717507990580,8.5109,166.2,166.15,9.1768]
[1717507990775,2.2263,166.19,166.14,2.2269]
[1717507990960,8.5109,166.2,166.15,9.1768]
[1717507991592,2.2265,166.18,166.13,2.2271]
[1717507991766,2.2265,166.18,166.13,9.1771]
[1717507992284,2.2264,166.19,166.13,9.1771]
[1717507992478,2.2264,166.19,166.14,2.227]
[1717507992676,8.7678,166.19,166.14,9.177]
[1717507993380,8.7678,166.19,166.15,6.95]
[1717507993605,2.2264,166.19,166.15,6.95]
[1717507993768,8.8612,166.23,166.17,9.1765]
[1717507994087,2.226,166.22,166.17,9.1765]
[1717507994488,8.8612,166.23,166.19,6.95]
[1717507995197,2.2258,166.23,166.19,6.95]
[1717507996264,2.2258,166.23,166.18,6.95]
[1717507996470,2.2259,166.22,166.17,2.2265]
[1717507996670,2.2259,166.22,166.18,6.95]
[1717507998485,13.005,166.25,166.14,40.534]
[1717507998682,6.055,166.23,166.18,6.95]
[1717507998880,2.226,166.22,166.18,6.95]
[1717507999388,2.226,166.22,166.17,9.1765]
[1717508000909,6.055,166.23,166.16,2.2267]
[1717508000910,2.2261,166.21,166.16,2.2267]
[1717508001100,2.2261,166.21,166.16,9.1767]
[1717508001398,2.2262,166.2,166.15,9.1768]
[1717508001713,2.2261,166.21,166.16,2.2267]
[1717508002089,8.4267,166.21,166.16,2.2267]
[1717508002292,2.2262,166.2,166.15,9.1768]
[1717508002482,8.4267,166.21,166.16,9.1767]
[1717508002687,8.4267,166.21,166.16,2.2267]
[1717508003995,8.4267,166.21,166.17,2.2266]
[1717508004200,8.4267,166.21,166.16,2.2267]
[1717508004378,6.2006,166.21,166.15,6.95]
[1717508004696,8.4267,166.21,166.16,2.2267]
[1717508006293,2.2263,166.19,166.15,2.2268]
[1717508006493,2.2263,166.19,166.14,2.2269]
[1717508006699,8.75,166.19,166.14,2.2269]
[1717508007710,8.75,166.19,166.09,26.9704]
[1717508007711,6.5534,166.16,166.09,4.4553]
[1717508008022,6.5534,166.16,166.1,0.17]
[1717508008190,6.5534,166.16,166.12,2.2272]
[1717508010110,6.5534,166.16,166.13,6.95]
[1717508010614,2.2265,166.18,166.13,6.95]
[1717508010615,8.5322,166.18,166.13,9.177]
[1717508010815,8.5322,166.18,166.12,2.2272]
[1717508011004,2.2266,166.17,166.12,2.2272]
[1717508011319,8.8189,166.17,166.12,2.2272]
[1717508011619,2.2267,166.16,166.11,2.2274]
[1717508011795,8.8189,166.17,166.11,2.2274]
[1717508011991,2.2267,166.16,166.11,2.2274]
[1717508012925,2.2267,166.16,166.12,6.95]
[1717508013215,8.8189,166.17,166.12,6.95]
[1717508014521,2.2267,166.16,166.12,6.95]
[1717508016331,8.8189,166.17,166.12,2.2272]
[1717508016500,8.8189,166.17,166.13,6.95]
[1717508016818,8.8189,166.17,166.12,9.1772]
[1717508017298,2.2267,166.16,166.12,6.95]
[1717508017498,8.8189,166.17,166.12,9.1772]
[1717508017698,2.2267,166.16,166.12,6.95]
[1717508018604,2.2267,166.16,166.11,2.2273]
[1717508018798,2.2267,166.16,166.12,6.95]
[1717508019523,2.2267,166.16,166.11,2.2273]
[1717508019820,2.227,166.14,166.09,2.2277]
[1717508020116,2.2272,166.13,166.09,6.95]
[1717508020415,8.6511,166.14,166.1,6.95]
[1717508020799,8.6511,166.14,166.1,9.1775]
[1717508021002,6.4241,166.14,166.1,9.1775]
[1717508021196,8.6511,166.14,166.1,6.95]
[1717508021397,8.6511,166.14,166.09,2.2276]
[1717508021700,8.6511,166.14,166.1,6.95]
[1717508021898,2.2271,166.13,166.08,2.2277]
[1717508022099,2.2271,166.13,166.1,6.95]
[1717508022318,2.2271,166.13,166.09,6.95]
[1717508023009,2.2271,166.13,166.08,2.2277]
[1717508023218,2.2271,166.13,166.09,9.1777]
[1717508023416,2.227,166.14,166.1,2.2275]
[1717508023626,2.2267,166.16,166.13,6.95]
[1717508023800,2.2267,166.17,166.13,6.95]
[1717508024121,8.6508,166.18,166.14,6.95]
[1717508024297,6.4243,166.22,166.15,6.95]
[1717508024498,2.2262,166.2,166.16,6.95]
[1717508025020,13.3743,166.22,166.17,6.95]
[1717508025021,8.6503,166.22,166.17,6.95]
[1717508025327,2.226,166.22,166.18,6.95]
[1717508025920,2.2262,166.2,166.15,2.2268]
[1717508026111,2.2262,166.2,166.16,6.95]
[1717508026428,2.2265,166.18,166.1,36.08]
[1717508026599,2.2262,166.2,166.15,6.95]
[1717508026795,2.2261,166.21,166.15,2.2268]
[1717508027105,8.7152,166.23,166.19,6.95]
[1717508027497,2.2259,166.22,166.19,6.95]
[1717508028017,2.2259,166.22,166.16,2.2267]
[1717508028221,13.4393,166.23,166.15,2.2268]
[1717508028522,2.2261,166.21,166.17,6.95]
[1717508029428,2.2259,166.22,166.17,6.95]
[1717508030325,2.2262,166.21,166.15,2.2268]
[1717508030620,2.2261,166.21,166.17,6.95]
[1717508030922,2.2262,166.2,166.16,6.95]
[1717508031215,2.2262,166.2,166.12,4.4545]
[1717508031216,6.95,166.2,166.12,2.2272]
[1717508031417,2.2263,166.19,166.14,6.95]
[1717508031619,2.2265,166.18,166.14,6.95]
[1717508032326,2.2265,166.18,166.12,2.2272]
[1717508032505,2.2266,166.17,166.12,2.2272]
[1717508032707,2.2266,166.17,166.13,6.95]
[1717508032908,2.2268,166.16,166.12,6.95]
[1717508033239,2.2268,166.16,166.11,9.1774]
[1717508033396,2.2268,166.16,166.08,13.5527]
[1717508033597,2.2269,166.15,166.11,6.95]
[1717508034729,2.2268,166.16,166.11,6.95]
[1717508035219,2.2268,166.16,166.12,6.95]
[1717508035429,8.7691,166.17,166.12,6.95]
[1717508035742,2.2268,166.16,166.12,6.95]
[1717508036312,2.2268,166.16,166.11,2.2274]
[1717508036499,2.2268,166.16,166.12,6.95]
[1717508036705,2.2268,166.16,166.11,6.95]
[1717508036899,2.2268,166.16,166.12,6.95]
[1717508037301,2.2268,166.16,166.1,2.2275]
[1717508037522,8.6336,166.16,166.11,6.95]
[1717508039106,2.2269,166.15,166.1,2.2275]
[1717508039312,8.3454,166.14,166.08,2.2277]
[1717508039522,8.3454,166.14,166.09,9.1776]
[1717508040225,8.3454,166.14,166.1,6.95]
[1717508040423,8.3454,166.14,166.09,2.2276]
[1717508040616,8.3454,166.14,166.1,6.95]
[1717508040922,8.3454,166.14,166.09,2.2276]
[1717508041229,8.3454,166.14,166.09,9.1776]
[1717508042026,2.2271,166.13,166.08,2.2278]
[1717508042332,2.2271,166.13,166.09,6.95]
[1717508042920,6.1184,166.14,166.09,9.1776]
[1717508043321,8.3455,166.14,166.09,9.1776]
[1717508043918,8.4201,166.13,166.09,6.95]
[1717508044120,8.4201,166.13,166.08,9.1778]
[1717508045206,8.4201,166.13,166.09,6.95]
[1717508046118,6.1929,166.13,166.09,9.1776]
[1717508046319,6.1929,166.13,166.1,6.95]
[1717508046725,8.42,166.13,166.1,6.95]
[1717508047320,8.42,166.13,166.09,6.95]
[1717508049445,8.42,166.13,166.08,2.2277]
[1717508049741,8.42,166.13,166.09,6.95]
[1717508050236,8.42,166.13,166.09,9.1776]
[1717508050445,6.1929,166.13,166.09,9.1776]
[1717508050622,6.1929,166.13,166.1,6.95]
[1717508050821,6.5815,166.14,166.1,9.1775]
[1717508051121,6.5815,166.13,166.08,2.2277]
[1717508051340,8.8087,166.13,166.1,6.95]
[1717508053035,8.8087,166.13,166.09,6.95]
[1717508053535,2.2273,166.12,166.09,6.95]
[1717508053861,8.8087,166.13,166.04,17.7697]
[1717508054023,8.5681,166.12,166.09,6.95]
[1717508054219,8.5681,166.12,166.08,6.95]
[1717508054740,8.5681,166.12,166.08,9.1778]
[1717508054942,6.3408,166.12,166.08,9.1778]
[1717508055115,6.3408,166.11,166.06,2.228]
[1717508055322,6.95,166.11,166.03,2.2284]
[1717508055522,6.95,166.11,166.01,258.2]
[1717508055523,8.3096,166.09,166.04,2.2283]
[1717508055734,8.3096,166.09,166.05,6.95]
[1717508055942,8.3096,166.09,166.05,9.1782]